Cogmind - Beta 13 @@@ ROGUE MODE // 2024.04.16 @ 18:20:41 Player: Exceptionally Mediocre Result: Destroyed by PP-XK4(R) with Subdweller Machine Gun Performance ------------- Evolutions (0) 0 Regions Visited (2) 400 Robots Destroyed (22) 110 Value Destroyed (418) 418 Prototype IDs (1) 20 Alien Tech Used (0) 0 Bonus (0) 0 TOTAL SCORE: 948 Bonus ------- None Cogmind --------- Core Integrity 0/250 Matter 148/300 Energy 125/125 System Corruption 0% Temperature Cool (0) Movement Core (1450) Ox28 Location -10/Subcaves Parts ------- > --- POWER (1) -------- Light Ion Engine > --- PROPULSION (2) --- (None) > --- UTILITY (2) ------ Huge Storage Unit Core Shielding > --- WEAPON (2) ------- Improved Assault Rifle > --- INVENTORY (25) --- Light Nuclear Core Aluminum Leg Aluminum Leg Improved Aluminum Leg Wheel High-capacity Matter Pod (0) Visual Processing Unit Improved Terrain Scanner Power Shielding Power Shielding Medium Laser Medium Laser Medium Laser Heavy Assault Rifle Heavy Assault Rifle Heavy Assault Rifle Improved Assault Rifle Mining Laser Peak State ------------ > --- POWER ------------ Light Nuclear Core > --- PROPULSION ------- Improved Aluminum Leg Improved Aluminum Leg > --- UTILITY ---------- Huge Storage Unit Improved Terrain Scanner > --- WEAPON ----------- Improved Assault Rifle Improved Assault Rifle > --- INVENTORY -------- Light Ion Engine Light Nuclear Core Aluminum Leg Aluminum Leg Improved Aluminum Leg Improved Aluminum Leg Wheel High-capacity Matter Pod Visual Processing Unit Core Shielding Power Shielding Power Shielding Medium Laser Medium Laser Medium Laser Heavy Assault Rifle Heavy Assault Rifle Heavy Assault Rifle Improved Assault Rifle Improved Assault Rifle Mining Laser [Rating: 20] Favorites ----------- Power Light Nuclear Core Engine Light Ion Engine Power Core Light Nuclear Core Propulsion Improved Aluminum Leg Leg Improved Aluminum Leg Wheel Compact Wheel Utility Improved Terrain Scanner Device Improved Terrain Scanner Storage Huge Storage Unit Protection Core Shielding Weapon Heavy Assault Rifle Energy Gun Medium Laser Ballistic Gun Heavy Assault Rifle Special Weapon Mining Laser Build | -11 -10 -10 ------- Run | Yrd Mat Sub Slots Evolved . | . . . Power . | . . . Propulsion . | . . . Utility . | . . . Weapon . | . . . Parts Attached 21 | 9 7 5 Power 3 | 1 1 1 Engine 2 | 1 . 1 Core 1 | . 1 . Reactor . | . . . Propulsion 6 | 3 2 1 Treads . | . . . Leg 3 | . 2 1 Wheel 3 | 3 . . Hover . | . . . Flight . | . . . Utility 4 | 2 1 1 Device 1 | 1 . . Storage 2 | 1 1 . Processor . | . . . Hackware . | . . . Protection 1 | . . 1 Artifact . | . . . Weapon 8 | 3 3 2 Energy Gun 3 | 3 . . Energy Cannon . | . . . Ballistic Gun 4 | . 2 2 Ballistic Cannon . | . . . Launcher . | . . . Special Weapon 1 | . 1 . Impact Weapon . | . . . Slashing Weapon . | . . . Piercing Weapon . | . . . Special Melee Weapon . | . . . Unidentified Prototypes 1 | . 1 . Parts Lost 7 | . 1 6 Power 2 | . 1 1 Propulsion 3 | . . 3 Utility . | . . . Weapon 2 | . . 2 Highest Loss Streak 6 | . 1 6 To Critical Strikes . | . . . Average Slot Usage (%) 99 | . 100 93 Engine 3 | . 3 5 Core 10 | . 10 6 Leg 26 | . 26 25 Wheel 1 | . 1 . Device 13 | . 14 3 Storage 14 | . 14 14 Energy Gun 5 | . 5 . Ballistic Gun 21 | . 21 22 Naked Turns . | . . . Heaviest Build 92 | 13 92 90 Greatest Support 32 | 32 26 26 Greatest Overweight (x) 6 | . 3 6 Average Overweight (x) 1 | . 1 3 Largest Inventory Capacity 25 | 8 25 25 Average Capacity 19 | 7 20 25 Most Carried 21 | 8 21 21 Average Carried 13 | 4 14 19 Final Capacity 25 | 8 25 25 Final Carried 21 | 8 21 18 Class Distribution -------------------- 100% | Mutant Dominant Class ---------------- Mutant | -10/Materials Mutant | -10/Subcaves Resources | -11 -10 -10 ----------- Run | Yrd Mat Sub Matter Collected 505 | 290 183 32 Remotely . | . . . Salvage Created 752 | 263 413 76 Parts 45 | 14 25 6 Haulers Intercepted 1 | . 1 . Recyclers Shooed . | . . . Parts Field Recycled . | . . . Retrieved Matter . | . . . Parts Self-Destructed 2 | . . 2 Prevented . | . . . Kills | -11 -10 -10 ------- Run | Yrd Mat Sub Combat Hostiles Destroyed 8 | . 6 2 Guns 8 | . 6 2 Classes Destroyed 7 | 3 3 1 Worker 4 | 2 2 . Tunneler 5 | 5 . . Hauler 1 | . 1 . Recycler 1 | 1 . . Watcher 3 | . 3 . Grunt 6 | . 6 . Subdweller 2 | . . 2 Best Kill Streak 5 | 5 3 2 Combat Bots Only 2 | . 2 2 Max Kills in Single Turn 1 | 1 1 1 Gunslinging . | . . . Exploded . | . . . Melee . | . . . Uniques/NPCs Destroyed . | . . . Combat | -11 -10 -10 -------- Run | Yrd Mat Sub Hostile Shots Fired 94 | . 37 57 Missed 19 | . 7 12 Damage Taken 1302 | . 377 925 Core 261 | . 77 184 Absorbed by Shields . | . . . Redirected to Shielding 32 | . . 32 Core Remaining (%) 100 | 100 . . Volleys Fired 85 | 15 44 26 Largest 2 | 2 2 2 Hottest 100 | 100 100 46 Shots Fired 162 | 30 84 48 Gun 158 | 30 80 48 Cannon . | . . . Launcher . | . . . Special 4 | . 4 . Kinetic 94 | . 46 48 Thermal 68 | 30 38 . Explosive . | . . . Electromagnetic . | . . . Robot Hit Streak 20 | 8 10 20 Robot Miss Streak 3 | 1 3 1 Penetration Max . | . . . Secondary Targets 2 | . 1 1 Max Gunslinging Chain 1 | . 1 1 Shots Hit Robots 114 | 21 49 44 Core Hits 35 | 9 22 4 Critical Kills . | . . . Critical Parts Destroyed 1 | . 1 . Critical Strikes 10 | 4 5 1 Burn 8 | 4 4 . Destroy 2 | . 1 1 Melee Attacks . | . . . Impact . | . . . Slashing . | . . . Piercing . | . . . Sneak Attacks . | . . . Combat Hostiles . | . . . Follow-up Attacks . | . . . Damage Inflicted 1197 | 262 688 247 Guns 1197 | 262 688 247 Cannons . | . . . Explosions . | . . . Melee . | . . . Ramming . | . . . Kinetic 672 | . 425 247 Thermal 525 | 262 263 . Explosive . | . . . Electromagnetic . | . . . Impact . | . . . Slashing . | . . . Piercing . | . . . Highest Corruption . | . . . Average Corruption . | . . . Corruption Purged . | . . . Corruption Blocked . | . . . Overload Shots . | . . . Overflow Damage . | . . . Projectiles . | . . . Explosions . | . . . Melee . | . . . Knockbacks . | . . . Impact . | . . . Kinetic . | . . . Secondary . | . . . Self-Inflicted Damage . | . . . Shots . | . . . Rammed . | . . . Targets Rammed . | . . . Kicked . | . . . Crushed . | . . . Highest Temperature 198 | 117 198 . Average Temperature 59 | 46 65 . Received Heat Transfer 315 | . 255 60 Siege Activations . | . . . Robots Corrupted . | . . . Combat Hostiles . | . . . Parts Fried . | . . . Impact Corruptions . | . . . Robots Melted . | . . . Combat Hostiles . | . . . Parts Melted 7 | 5 2 . Heat Transferred 2146 | 1073 1073 . Parts Sabotaged . | . . . Parts Stolen . | . . . Parts Stripped . | . . . Power Chain Reactions . | . . . Alert | -11 -10 -10 ------- Run | Yrd Mat Sub Peak Influence 258 | 40 258 . Initial 26 | . 26 . Average 53 | 17 57 . Maximum Alert Level 1 | . 1 . Low Security (%) 89 | 100 88 . Level 1 10 | . 11 . Level 2 . | . . . Level 3 . | . . . Level 4 . | . . . Level 5 . | . . . High Security . | . . . Max Security . | . . . Squads Dispatched . | . . . Investigation . | . . . Extermination . | . . . Reinforcement . | . . . Assault . | . . . Garrison . | . . . Intercept . | . . . Searches Triggered . | . . . Construction Impeded . | . . . Haulers Reinforced . | . . . Active Scanning Responses . | . . . Cargo Convoy Interrupts . | . . . Stealth | -11 -10 -10 --------- Run | Yrd Mat Sub Distress Signals 1 | . 1 . Communications Jammed . | . . . Distress Signals . | . . . Times Spotted 14 | . 11 3 Peak Tracking Total 3 | . 3 3 Tactical Retreats 1 | . 1 . Traps | -11 -10 -10 ------- Run | Yrd Mat Sub Traps Triggered . | . . . Indirectly . | . . . Trap Hack Attempts . | . . . Triggered . | . . . Disarmed . | . . . Reprogrammed . | . . . Reused . | . . . Traps Extracted . | . . . Installed . | . . . Triggered . | . . . Machines | -11 -10 -10 ---------- Run | Yrd Mat Sub Machines Disabled . | . . . Max in Single Turn . | . . . Machines Repaired . | . . . Machines Dismantled . | . . . Machines Sabotaged . | . . . Overloaded Fab Kills . | . . . Hacking | -11 -10 -10 --------- Run | Yrd Mat Sub Machines Accessed 5 | . 5 . Terminals 4 | . 4 . Fabricators . | . . . Repair Stations . | . . . Recycling Units 1 | . 1 . Scanalyzers . | . . . Garrison Access . | . . . Total Hacks 11 | . 11 . Successful 4 | . 4 . Failed 7 | . 7 . Catastrophic . | . . . Database Lockouts . | . . . Manual 7 | . 7 . Terminals 7 | . 7 . Fabricators . | . . . Repair Stations . | . . . Recycling Units 4 | . 4 . Scanalyzers . | . . . Garrison Access . | . . . Terminal Hacks . | . . . Fabricator Hacks . | . . . Repair Station Hacks . | . . . Recycling Unit Hacks . | . . . Scanalyzer . | . . . Garrison Access Hacks . | . . . Unauthorized Hacks 4 | . 4 . Terminals 4 | . 4 . Botnet 4 | . 4 . Fabricators . | . . . Repair Stations . | . . . Recycling Units . | . . . Scanalyzers . | . . . Garrison Access . | . . . Data Cores Recovered . | . . . Used . | . . . Hacking Detections 3 | . 3 . Full Trace Events 1 | . 1 . Feedback Events . | . . . Feedback Blocked . | . . . Robot Schematics Acquired . | . . . Robots Built . | . . . Authchips . | . . . Time . | . . . Total Robot Build Rating . | . . . Part Schematics Acquired . | . . . Parts Built . | . . . Authchips . | . . . Time . | . . . Total Part Build Rating . | . . . Parts Repaired . | . . . Time . | . . . Parts Recycled . | . . . Recycled Matter . | . . . Retrieved Matter . | . . . Retrieved Components . | . . . Parts Scanalyzed . | . . . Part Schematics Acquired . | . . . Parts Damaged . | . . . Bothacking | -11 -10 -10 ------------ Run | Yrd Mat Sub Used RIF Installer . | . . . Robots Hacked . | . . . Non-combat . | . . . Combat . | . . . Robot Hacks Applied . | . . . Relay Couplers Released . | . . . Fabnet Peak Effective % . | . . . Robots Rewired . | . . . Allies Hacked . | . . . Hacks Repelled . | . . . Allies | -11 -10 -10 -------- Run | Yrd Mat Sub Total Allies . | . . . Largest Group . | . . . Highest-Rated Group . | . . . Highest-Rated Ally . | . . . Total Orders . | . . . Ally Attacks . | . . . Total Damage . | . . . Kills . | . . . Allies Corrupted . | . . . Allies Melted . | . . . Intel | -11 -10 -10 ------- Run | Yrd Mat Sub Robot Analysis Total . | . . . Derelict Logs Recovered . | . . . Drone Launches . | . . . Drone Recoveries . | . . . Exploration | -11 -10 -10 ------------- Run | Yrd Mat Sub Turns Passed 1753 | 176 1466 111 Spaces Moved 656 | 119 528 9 Core 1 | 1 . . Treads . | . . . Legs 492 | . 483 9 Wheels 163 | 118 45 . Hover . | . . . Flight . | . . . Fastest Speed 50 | 50 90 330 Average Speed 217 | 91 243 353 Slowest Speed 540 | 100 330 540 Overloaded Moves . | . . . Propulsion Burnouts . | . . . Robots Hopped . | . . . Cave-ins Triggered . | . . . Exploration Rate (%) 29 | 5 80 2 Regions Visited 2 Branch Regions 1 Pre-discovered Areas . | . . . Known Exits Taken . | . . . Unknown Exits Taken 2 | 1 1 . Scrap Searched . | . . . Spaces Dug . | . . . Terrain Destroyed . | . . . Melee . | . . . Projectile . | . . . AOE . | . . . Terrain Rammed . | . . . Walls Destroyed . | . . . Machines Disabled . | . . . Actions | -11 -10 -10 --------- Run | Yrd Mat Sub Total 815 | 152 623 40 Wait 2 | . 2 . Move 654 | 118 527 9 Hop . | . . . Pick Up 37 | 9 28 . Fast Attach 6 | 6 . . Attach 5 | 1 1 3 Detach . | . . . Swap 10 | 2 6 2 Drop 16 | 1 15 . Fire 85 | 15 44 26 Melee . | . . . Ram . | . . . Kick . | . . . Crush . | . . . Escape Stasis . | . . . Rewire . | . . . Trap . | . . . Miscellaneous . | . . . Route ------- -11/Scrapyard -10/Materials (discovered 5 exits: [*Mat x3] / [*Min] / [*Sub]) -10/Subcaves (discovered 1 exit: [*Mat]) History --------- Turn | Location | Event 22 | -11/Scrapyard | Discovered new exit (range 15) 177 | -11/Scrapyard | Entered Materials 316 | -10/Materials | Discovered new exit (range 3) 317 | -10/Materials | Build established: Mutant 419 | -10/Materials | Discovered new exit (range 15) 1187 | -10/Materials | Discovered new exit (range 10) 1489 | -10/Materials | Discovered new exit (range 10) 1559 | -10/Materials | Discovered new exit (range 15) 1643 | -10/Materials | Entered Subcaves 1650 | -10/Subcaves | Discovered new exit (range 10) 1679 | -10/Subcaves | Core integrity fell below 50% 1725 | -10/Subcaves | Core integrity fell below 20% 1754 | -10/Subcaves | Destroyed by PP-XK4(R) with Subdweller Machine Gun Last Messages --------------- 01680_ Imp. Aluminum Leg destroyed. 01683_ XG-VNE(R) suffers critical hit (Destroy). 01695_ Destroyed Scrap Shield. 01698_ XG-VNE(R) destroyed. 01698_ Switching to secondary target: PP-XK4(R). 01698_ Lgt. Nuclear Core destroyed. 01699_ Subatomizers dissect the Disposable Heat Sink. 01701_ 6L-C23(R) destroyed. 01702_ Acquired 32 matter. 01709_ Subatomizers dissect the Disposable Heat Sink. 01714_ Imp. Assault Rifle destroyed. 01720_ Subatomizers dissect the Disposable Heat Sink. 01740_ Imp. Assault Rifle destroyed. 01744_ Imp. Aluminum Leg destroyed. 01747_ Subatomizers dissect the Disposable Heat Sink. 01748_ Imp. Aluminum Leg destroyed. Map ----- +----------------------------------------------------+ | ?????????????????????????????????????????????????? | | ?????????????????????????????????????????????????? | | ?????????????????????????????????????????????????? | | ?????????????????????????????????????????????????? | | ?????????????????????????????????????????????????? | | ?????????????????????????????????????????????????? | | ?????????????????????????????????????????????????? | | ?????????????????????????????????????????????????? | | ?????????????????????????????????????????????????? | | ?????????????????????????????????????????????????? | | ?????????????????????????????????????????????????? | | ??????????????????????????""?????????????????????? | | ??????????????????????????"#?????????????????????? | | ?????????????????????????? #?????????????????????? | | ?????????????????????????? #?????????????????????? | | ???????????????????????### ??#??#???????????????? | | ??????????????????????? # ????????????????????? | | ??????????????????????? """"""???????????????????? | | ????????????????????? ? < ""##?????????????????? | | ??????????????????????"?" "" ??#?#????????????? | | ??????????????????????#""=" ? ????????????????? | | ??????????????????????#"#&"#? #????????????????? | | ????????????????????#??#"!"#? "#????????????????? | | ???????????????????????##%R#? #????????????????? | | ???????????????????## ?# &*### #????????????????? | | ???????????????????# ##@[&##" ##???????#???????? | | ?????????????????#?# ! # "" #???????????????? | | ???????????????????# ###??????????????? | | ?????????????#?????# "#??????????????? | | ???????????????????## ##### ##?????????????? | | ??????????????????? ????## "#?????????????? | | ????????????????? ??????# ##?????????????? | | ????????????????# ?????## ###??????????????? | | ???????????????? ?????#?# ##????????????????? | | ???????????????# ????????# #?????????????????? | | ??????????????? ?????????# #?????????????????? | | ?????????????? ?????????? #?????????????????? | | ????????????????????????? ?????????????????? | | ???????????????????????? ?????????????????? | | ???????????????????? ??? ????????????????? | | ???????????????????????## #### ????????????????? | | ????????????????????????####???? ????????????????? | | ?????????????????????????????????????????????????? | | ?????????????????????????????????????????????????? | | ?????????????????????????????????????????????????? | | ?????????????????????????????????????????????????? | | ?????????????????????????????????????????????????? | | ?????????????????????????????????????????????????? | | ?????????????????????????????????????????????????? | | ?????????????????????????????????????????????????? | +----------------------------------------------------+ Best States ------------- Heat Dissipation 25 Energy Generation 14 Energy Capacity 160 Matter Stores 300 Matter Capacity 300 Sight Range 16 Terrain Scan Range 16 Terrain Scan Density 10 Core Shielding 20 Evasion (%) 55 Item Schematics ----------------- None Robot Schematics ------------------ None Fabricated ------------ Nothing Alien Tech Used ----------------- None Achievements -------------- None Challenges ------------ None Game ------ Seed WeightWeldingSpecial Manual? 0 Play Time 00:10:31 Cumulative 66.8 hours Start 2024.04.16 @ 18:11:12 End 2024.04.16 @ 18:20:41 Sessions 1 Manual Loads 0 Difficulty Rogue Special Mode None Game No. 79 Rogue 79 Adventurer 0 Explorer 0 Win Type - Total 0 Types 0/0/0/0/0/0/0/0/0 Lore% 18 Gallery% 42 Achievement% 30 Wizard Run 0 Options --------- Layout 1 ASCII 0 Keyboard 1 Movement Vi Keybinds 0 Fullscreen 1 Font 24/Smallcaps Map View 50x35 Zoom Use 0% Tactical HUD 1 Map Filters NONE Filters NONE Steam 1 RUN: df83d75d-f954-4393-be4c-2ad310924d9f